bitfinex/quotes_BTCUSD_20251007
["timestamp","ask_amount","ask_price","bid_price","bid_amount"]
[1759858883455,1.38909246,121380.0,121370.0,0.11246]
[1759858883633,1.38909246,121380.0,121370.0,0.34674]
[1759858883848,0.77786253,121380.0,121370.0,0.34674]
[1759858884060,0.77786253,121380.0,121370.0,0.51152536]
[1759858884320,0.00186081,121380.0,121370.0,0.59431536]
[1759858885143,0.1666326,121380.0,121370.0,0.59431536]
[1759858885761,0.00186081,121380.0,121370.0,0.59431536]
[1759858885980,0.00186081,121380.0,121370.0,0.67027827]
[1759858886191,0.00186081,121380.0,121370.0,0.78290981]
[1759858887110,0.00186081,121380.0,121370.0,0.7069469]
[1759858887359,0.00186081,121380.0,121370.0,0.7512652]
[1759858887867,0.00186081,121380.0,121370.0,0.72175572]
[1759858888076,0.00186081,121380.0,121370.0,1.01743742]
[1759858889831,0.00186081,121380.0,121370.0,0.78315742]
[1759858890043,0.00186081,121380.0,121370.0,1.14739902]
[1759858891807,0.00186081,121380.0,121370.0,1.06175902]
[1759858892012,0.00186081,121380.0,121370.0,0.82747902]
[1759858892219,0.00186081,121380.0,121370.0,1.10307742]
[1759858892423,0.00186081,121380.0,121370.0,0.80742541]
[1759858896163,0.00186081,121380.0,121370.0,0.83308306]
[1759858896370,0.00186081,121380.0,121370.0,0.76307742]
[1759858899843,0.00186081,121380.0,121370.0,0.44315742]
[1759858900046,0.00186081,121380.0,121370.0,0.807432]
[1759858901062,0.00186081,121380.0,121370.0,0.487552]
[1759858901299,0.00186081,121380.0,121370.0,0.76303742]
[1759858901897,0.1666326,121380.0,121370.0,0.2396605]
[1759858902100,0.1666326,121380.0,121370.0,0.5654533]
[1759858902724,0.1656326,121380.0,121370.0,0.6200433]
[1759858902938,0.1656326,121380.0,121370.0,0.6180433]
[1759858903146,0.1706326,121380.0,121370.0,0.58943536]
[1759858904257,0.1706326,121380.0,121370.0,0.35519536]
[1759858904434,0.1706326,121380.0,121370.0,0.58943536]
[1759858904771,0.00586081,121380.0,121370.0,0.58943536]
[1759858905186,0.1706326,121380.0,121370.0,0.58943536]
[1759858906434,0.00586081,121380.0,121370.0,0.58943536]
[1759858906636,0.00586081,121380.0,121370.0,0.66935132]
[1759858906836,0.00586081,121380.0,121370.0,0.58943536]
[1759858910221,0.1706326,121380.0,121370.0,0.35519536]
[1759858910349,0.00586081,121380.0,121370.0,0.58943536]
[1759858914446,0.00586081,121380.0,121370.0,0.63384586]
[1759858915564,0.00586081,121380.0,121370.0,0.39960586]
[1759858915737,0.00586081,121380.0,121370.0,0.58943536]
[1759858916380,0.00586081,121380.0,121370.0,0.63384586]
[1759858921539,0.00586081,121380.0,121370.0,0.39960586]
[1759858921780,0.00586081,121380.0,121370.0,0.63384586]
[1759858921988,0.00586081,121380.0,121370.0,0.71696792]
[1759858922201,0.00586081,121380.0,121370.0,0.67255742]
[1759858922980,0.00286081,121380.0,121370.0,0.67155742]
[1759858923190,0.00386081,121380.0,121370.0,0.67255742]
[1759858924211,0.00186081,121380.0,121370.0,0.67255742]
[1759858924416,0.00186081,121380.0,121370.0,0.67455742]
[1759858926023,0.00186081,121380.0,121370.0,0.44031742]
[1759858926371,0.00186081,121380.0,121370.0,0.76019742]
[1759858926515,0.00186081,121380.0,121370.0,0.80461577]
[1759858927663,0.00186081,121380.0,121370.0,0.48473577]
[1759858927864,0.77803346,121380.0,121370.0,0.35719536]
[1759858928113,0.77803346,121380.0,121370.0,0.59143536]
[1759858929331,0.77803346,121380.0,121370.0,0.62105446]
[1759858930335,0.77803346,121380.0,121370.0,0.56546446]
[1759858930698,0.77803346,121380.0,121370.0,0.62007446]
[1759858931518,0.1666326,121380.0,121370.0,0.62007446]
[1759858931727,0.03500003,121380.0,121370.0,0.62007446]
[1759858931934,0.1666326,121380.0,121370.0,0.62007446]
[1759858934910,0.77803346,121380.0,121370.0,0.4006791]
[1759858935111,0.1666326,121380.0,121370.0,0.56546446]
[1759858935374,0.1666326,121380.0,121370.0,0.0790591]
[1759858935375,0.77808741,121380.0,121370.0,0.0790591]
[1759858935580,0.77808741,121380.0,121370.0,0.23724]
[1759858936310,0.77808741,121380.0,121370.0,0.25888]
[1759858936546,0.77708741,121380.0,121370.0,0.25788]
[1759858936787,0.77908741,121380.0,121370.0,0.29612]
[1759858939936,0.1676326,121380.0,121370.0,0.29612]
[1759858940131,0.83575063,121380.0,121370.0,0.29612]
[1759858942547,0.22429582,121380.0,121370.0,0.29612]
[1759858943011,0.83575063,121380.0,121370.0,0.25688]
[1759858943812,0.22429582,121380.0,121370.0,0.25688]
[1759858944033,0.83575063,121380.0,121370.0,0.29612]
[1759858944283,0.1676326,121380.0,121370.0,0.58290536]
[1759858944512,0.00286081,121380.0,121370.0,0.58290536]
[1759858944718,0.00286081,121380.0,121370.0,0.61252446]
[1759858944978,0.1676326,121380.0,121370.0,0.61252446]
[1759858945197,0.00286081,121380.0,121370.0,0.61252446]
[1759858945397,0.1676326,121380.0,121370.0,0.61252446]
[1759858945614,0.1676326,121380.0,121370.0,0.62117546]
[1759858947559,0.1676326,121380.0,121370.0,0.59155636]
[1759858947731,0.00286081,121380.0,121370.0,0.59155636]
[1759858947931,0.16262039,121390.0,121370.0,0.59155636]
[1759858948259,0.16262039,121390.0,121380.0,0.14364]
[1759858948752,0.16313502,121390.0,121380.0,0.18288]
[1759858949253,0.16513502,121390.0,121380.0,0.18288]
[1759858950307,0.77458983,121390.0,121380.0,0.0436]
[1759858950522,0.77458983,121390.0,121380.0,0.27784]
[1759858950732,0.77858983,121390.0,121380.0,0.31496]
[1759858951126,0.16927284,121390.0,121380.0,0.52377179]
[1759858951372,0.16927284,121390.0,121380.0,0.57968179]
[1759858952196,0.16927284,121390.0,121380.0,0.41491]
[1759858952826,0.16927284,121390.0,121380.0,0.18067]
[1759858952958,1.20384971,121390.0,121380.0,0.001]
[1759858953795,1.20184971,121390.0,121380.0,0.001]
[1759858954002,0.16477179,121380.0,121370.0,0.00951185]
[1759858954205,0.7762266,121380.0,121370.0,0.00951185]
[1759858954634,0.7762266,121380.0,121370.0,0.03269185]
[1759858955024,1.0144266,121380.0,121370.0,0.03369185]
[1759858955478,0.40297179,121380.0,121370.0,0.13532185]
[1759858955702,1.0144266,121380.0,121370.0,0.13532185]
[1759858956375,1.0184266,121380.0,121370.0,0.13532185]
[1759858958614,0.17277179,121380.0,121370.0,0.19123185]
[1759858960503,0.7842266,121380.0,121370.0,0.01051185]
[1759858963356,0.17277179,121380.0,121370.0,0.01051185]
[1759858963561,0.7842266,121380.0,121370.0,0.03373185]
[1759858964574,0.40697179,121380.0,121370.0,0.13785185]
[1759858964809,0.40697179,121380.0,121370.0,0.18990185]
[1759858965008,0.17277179,121380.0,121370.0,0.18990185]
[1759858966010,0.17277179,121380.0,121370.0,0.35468721]
[1759858967333,0.22999625,121380.0,121370.0,0.18990185]
[1759858967520,0.22999625,121380.0,121370.0,0.35468721]
[1759858967665,0.008,121380.0,121370.0,0.35468721]
[1759858967871,0.008,121380.0,121370.0,0.56790762]
[1759858968500,0.008,121380.0,121370.0,0.52348927]
[1759858968718,0.008,121380.0,121370.0,0.54822265]
[1759858968945,0.00051463,121390.0,121380.0,0.16477179]
[1759858969152,0.00051463,121390.0,121380.0,0.61465657]
[1759858969464,0.00051463,121390.0,121380.0,0.65235657]
[1759858970094,0.00151463,121390.0,121380.0,0.65335657]
[1759858970295,0.00151463,121390.0,121380.0,0.6089597]
[1759858970525,0.00151463,121390.0,121380.0,0.6129597]
[1759858971421,0.00151463,121390.0,121380.0,0.75477917]
[1759858971629,0.00151463,121390.0,121380.0,0.74991297]
[1759858972237,0.00151463,121390.0,121380.0,0.7794946]
[1759858972485,0.00151463,121390.0,121380.0,0.74991297]
[1759858973286,0.00151463,121390.0,121380.0,0.83555297]
[1759858974825,0.00151463,121390.0,121380.0,0.51571297]
[1759858975017,0.00151463,121390.0,121380.0,0.83551297]
[1759858976222,0.00151463,121390.0,121380.0,0.51571297]
[1759858976452,0.00151463,121390.0,121380.0,0.83551297]
[1759858976899,0.00151463,121390.0,121380.0,0.51571297]
[1759858977117,0.00151463,121390.0,121380.0,0.83551297]
[1759858977560,0.00151463,121390.0,121380.0,0.74987297]
[1759858977762,0.00151463,121390.0,121380.0,0.83551297]
[1759858978219,0.00151463,121390.0,121380.0,0.86506397]
[1759858979135,0.00151463,121390.0,121380.0,0.77942397]
[1759858979332,0.00151463,121390.0,121380.0,0.86506397]
[1759858979625,0.00151463,121390.0,121380.0,0.83551297]
[1759858980490,0.00151463,121390.0,121380.0,0.91550977]
[1759858980699,0.00151463,121390.0,121380.0,1.2111129]
[1759858980903,0.00151463,121390.0,121380.0,1.27017645]
[1759858981290,0.00151463,121390.0,121380.0,1.2111129]
[1759858981620,0.04202254,121410.0,121400.0,0.16474464]
[1759858981924,0.17302869,121420.0,121400.0,0.57693464]
[1759858982118,0.16526098,121420.0,121400.0,0.43453464]
[1759858982330,0.16526098,121420.0,121410.0,0.1424]
[1759858982739,0.16526098,121420.0,121410.0,0.17807]
[1759858982941,0.16626098,121420.0,121410.0,0.17807]
[1759858983161,0.16526098,121420.0,121410.0,0.17807]
[1759858983923,0.16526098,121420.0,121410.0,0.34280107]
[1759858984279,0.16526098,121420.0,121410.0,0.28697107]
[1759858984471,0.17126098,121420.0,121410.0,0.28797107]
[1759858984806,0.17126098,121420.0,121410.0,0.34380107]
[1759858985223,0.78271579,121420.0,121410.0,0.10111]
[1759858985669,0.84302739,121420.0,121410.0,0.10111]
[1759858987035,0.84302739,121420.0,121410.0,0.06544]
[1759858988292,0.84302739,121420.0,121410.0,0.10111]
[1759858988689,0.84457082,121420.0,121410.0,0.10111]
[1759858990333,0.06835923,121420.0,121410.0,0.26584107]
[1759858990537,0.06835923,121420.0,121410.0,0.34380107]
[1759858990869,0.84453154,121420.0,121410.0,0.23508]
[1759858991230,0.84453154,121420.0,121410.0,0.25687]
[1759858991431,0.84453154,121420.0,121410.0,0.02279]
[1759858992080,0.84453154,121420.0,121410.0,0.05846]
[1759858993475,0.83953154,121420.0,121410.0,0.05846]
[1759858995141,1.45039457,121420.0,121410.0,0.05846]
[1759858996216,0.22807673,121420.0,121410.0,0.05846]
[1759858996421,0.83923565,121420.0,121410.0,0.12324]
[1759858996622,1.45039457,121420.0,121410.0,0.12324]
[1759858996955,0.83923565,121420.0,121410.0,0.12324]
[1759858997136,0.22807673,121420.0,121410.0,0.12324]
[1759858997344,0.22807673,121420.0,121410.0,0.17907]
[1759858997579,0.83923565,121420.0,121410.0,0.17907]
[1759858998751,0.22807673,121420.0,121410.0,0.17907]
[1759858998977,0.83923565,121420.0,121410.0,0.17907]
[1759859001535,0.83923565,121420.0,121410.0,0.10111]
[1759859001745,0.83923565,121420.0,121410.0,1.10111]
[1759859002167,0.83923565,121420.0,121410.0,1.12324]
[1759859003863,0.22807673,121420.0,121410.0,1.17907]
[1759859004076,0.83923565,121420.0,121410.0,1.17907]
[1759859005155,0.83923565,121420.0,121410.0,1.12324]
[1759859006383,0.83923565,121420.0,121410.0,1.35728]
[1759859009265,0.83923565,121420.0,121410.0,1.38681456]
[1759859009464,0.83923565,121420.0,121410.0,1.44264456]
[1759859011478,0.83923565,121420.0,121410.0,1.38681456]
[1759859011632,0.83923565,121420.0,121410.0,1.44161456]
[1759859012034,0.83923565,121420.0,121410.0,1.07407456]
[1759859012237,1.45039457,121420.0,121410.0,1.30811456]
[1759859012449,1.45039457,121420.0,121410.0,1.34551456]
[1759859012872,0.83923565,121420.0,121410.0,1.34551456]
[1759859013451,0.83923565,121420.0,121410.0,1.30807456]
[1759859013882,0.83923565,121420.0,121410.0,1.07407456]
[1759859014109,0.83923565,121420.0,121410.0,1.30807456]
[1759859014957,0.83923565,121420.0,121410.0,1.34547456]
[1759859015942,0.46207673,121420.0,121410.0,1.34547456]
[1759859016147,1.07323565,121420.0,121410.0,1.38847456]
[1759859016756,0.83923565,121420.0,121410.0,1.38847456]
[1759859016959,1.07323565,121420.0,121410.0,1.38847456]
[1759859017292,1.07323565,121420.0,121410.0,1.36623456]
[1759859018039,1.68439457,121420.0,121410.0,1.26453456]
[1759859018472,1.68439457,121420.0,121410.0,1.32181456]
[1759859018677,1.68439457,121420.0,121410.0,1.29228]
[1759859019544,0.06335923,121420.0,121410.0,1.56974107]
[1759859019909,0.22807673,121420.0,121410.0,1.40501]
[1759859020127,0.22807673,121420.0,121410.0,1.60379581]
[1759859020595,0.22807673,121420.0,121410.0,1.56874107]
[1759859020796,0.83873145,121420.0,121410.0,1.56974107]
[1759859021140,0.83873145,121420.0,121410.0,1.57274107]
[1759859021342,0.22757253,121420.0,121410.0,1.57274107]
[1759859021716,0.83873145,121420.0,121410.0,1.57274107]
[1759859023585,0.83873145,121420.0,121410.0,1.35696]
[1759859024276,1.53301243,121420.0,121410.0,1.004]
[1759859024422,2.49954372,121420.0,121410.0,1.004]
[1759859024622,2.52427802,121420.0,121410.0,1.004]
[1759859025067,2.53096268,121420.0,121410.0,1.003]
[1759859025265,1.91980376,121420.0,121410.0,1.003]
[1759859025480,1.92180376,121420.0,121410.0,1.004]
[1759859025675,2.53296268,121420.0,121410.0,1.004]
[1759859025906,0.69948592,121420.0,121410.0,1.004]
[1759859026126,2.52527802,121420.0,121410.0,1.004]
[1759859026315,2.52527802,121420.0,121410.0,1.001]
[1759859026519,2.52727802,121420.0,121410.0,1.001]
[1759859026763,2.52527802,121420.0,121410.0,1.0]
[1759859026928,2.52727802,121420.0,121410.0,1.001]
[1759859028440,2.76127802,121420.0,121410.0,1.001]
[1759859028900,2.74590565,121420.0,121410.0,1.001]
[1759859034044,2.77605755,121420.0,121410.0,1.001]
[1759859036442,2.54205755,121420.0,121410.0,1.001]
[1759859036671,2.86165755,121420.0,121410.0,1.001]
[1759859040075,2.54205755,121420.0,121410.0,1.001]
[1759859040272,2.91110755,121420.0,121410.0,1.001]
[1759859040904,1.07763079,121420.0,121410.0,1.001]
[1759859041120,2.91110755,121420.0,121410.0,1.001]
[1759859041323,2.82546755,121420.0,121410.0,1.001]
[1759859041705,2.91110755,121420.0,121410.0,1.001]
[1759859042366,2.29994863,121420.0,121410.0,1.001]
[1759859043418,1.98034863,121420.0,121410.0,1.001]
[1759859043837,2.29994863,121420.0,121410.0,1.001]
[1759859044619,2.91110755,121420.0,121410.0,1.001]
[1759859045485,2.59150755,121420.0,121410.0,1.001]
[1759859045688,2.29994863,121420.0,121410.0,1.001]
[1759859045909,0.70858079,121420.0,121410.0,1.001]
[1759859046123,1.93089863,121420.0,121410.0,1.001]
[1759859046331,2.13470673,121420.0,121410.0,1.001]
[1759859046534,2.13470673,121420.0,121410.0,1.02322]
[1759859046744,0.84173145,121420.0,121410.0,1.12085]
[1759859046950,1.07569145,121420.0,121410.0,1.17576]
[1759859047633,1.07569145,121420.0,121410.0,1.11199987]
[1759859047854,1.07569145,121420.0,121410.0,1.10984572]
[1759859048670,1.68685037,121420.0,121410.0,1.10984572]
[1759859048875,1.07569145,121420.0,121410.0,1.10984572]
[1759859049845,1.68685037,121420.0,121410.0,1.10984572]
[1759859050261,1.68685037,121420.0,121410.0,1.08929572]
[1759859050467,1.68685037,121420.0,121410.0,0.98999572]
[1759859051453,1.45289037,121420.0,121410.0,0.98999572]
[1759859051647,1.68681037,121420.0,121410.0,0.98999572]
[1759859052892,0.46449253,121420.0,121410.0,0.98999572]
[1759859053197,1.68681037,121420.0,121410.0,0.98999572]
[1759859053795,2.10993243,121420.0,121410.0,0.98999572]
[1759859054195,2.13466595,121420.0,121410.0,0.98999572]
[1759859054643,2.16481785,121420.0,121410.0,0.98960128]
[1759859055303,2.16911649,121420.0,121410.0,0.98960128]
[1759859057108,1.55810092,121420.0,121410.0,0.98960128]
[1759859059387,1.32418092,121420.0,121410.0,0.98960128]
[1759859059616,1.55810092,121420.0,121410.0,0.98960128]
[1759859060401,1.32418092,121420.0,121410.0,0.98960128]
[1759859060819,1.55806092,121420.0,121410.0,1.01182128]
[1759859061027,1.32418092,121420.0,121410.0,0.98960128]
[1759859061397,1.55806092,121420.0,121410.0,1.04573128]
[1759859061801,1.55806092,121420.0,121410.0,1.01182128]
[1759859063369,1.29402902,121420.0,121410.0,1.04573128]
[1759859063589,1.29402902,121420.0,121410.0,1.10945128]
[1759859063590,1.5031755,121420.0,121410.0,1.10945128]
[1759859064183,1.5031755,121420.0,121410.0,1.08890128]
[1759859065183,1.2692955,121420.0,121410.0,1.08890128]
[1759859065510,0.23487117,121420.0,121410.0,1.39824128]
[1759859065720,0.23057253,121420.0,121410.0,1.39824128]
[1759859066073,0.23057253,121420.0,121410.0,1.59256915]
[1759859066280,0.22857253,121420.0,121410.0,1.42783808]
[1759859066479,0.22657253,121420.0,121410.0,1.59156915]
[1759859066681,0.22757253,121420.0,121410.0,1.59456915]
[1759859069203,0.06285503,121420.0,121410.0,1.59456915]
[1759859069418,0.22757253,121420.0,121410.0,1.19595808]
[1759859069633,0.22757253,121420.0,121410.0,1.59456915]
[1759859069838,0.22757253,121420.0,121410.0,1.42983808]
[1759859070863,0.22757253,121420.0,121410.0,1.59456915]
[1759859071731,0.06285503,121420.0,121410.0,1.59456915]
[1759859071964,0.06285503,121420.0,121410.0,1.638871]
[1759859073091,0.00254343,121420.0,121410.0,1.80198986]
[1759859073333,0.00254343,121420.0,121410.0,1.77239306]
[1759859073512,0.00254343,121420.0,121410.0,1.75281513]
[1759859073725,0.00254343,121420.0,121410.0,1.75277513]
[1759859073935,0.00154343,121420.0,121410.0,1.43793833]
[1759859074163,0.00154343,121420.0,121410.0,1.75741833]
[1759859074368,0.00254343,121420.0,121410.0,1.80276477]
[1759859074790,0.00254343,121420.0,121410.0,1.80076477]
[1759859075216,0.00254343,121420.0,121410.0,1.80676477]
[1759859075617,0.00154343,121420.0,121410.0,1.80576477]
[1759859075818,0.00154343,121420.0,121410.0,1.80776477]
[1759859076031,0.00254343,121420.0,121410.0,1.80776477]
[1759859078450,0.00254343,121420.0,121410.0,1.80772477]
[1759859079674,0.00254343,121420.0,121410.0,1.88772157]
[1759859079987,0.00254343,121420.0,121410.0,2.24243868]
[1759859081518,0.00254343,121420.0,121410.0,1.92299868]
[1759859081732,0.00254343,121420.0,121410.0,2.24243868]
[1759859086039,0.00254343,121420.0,121410.0,2.16244188]
[1759859088627,0.00154343,121420.0,121410.0,2.16044188]
[1759859089036,0.00254343,121420.0,121410.0,2.16544188]
[1759859089459,0.00254343,121420.0,121410.0,2.19559378]
[1759859089659,0.00254343,121420.0,121410.0,2.22059378]
[1759859089883,0.00254343,121420.0,121410.0,2.29459058]
[1759859090081,0.00254343,121420.0,121410.0,2.30159058]
[1759859091944,0.00254343,121420.0,121410.0,1.98215058]
[1759859092086,0.00254343,121420.0,121410.0,2.64395058]
[1759859092285,0.00254343,121420.0,121410.0,1.92308703]
[1759859092504,0.00254343,121420.0,121410.0,2.58488703]
[1759859092925,0.00254343,121420.0,121410.0,2.15680703]
[1759859093127,0.00254343,121420.0,121410.0,2.55828589]
[1759859093335,0.00254343,121420.0,121410.0,2.58488703]
[1759859096710,0.00254343,121420.0,121410.0,1.92308703]
[1759859096914,0.00254343,121420.0,121410.0,2.47985023]
[1759859097125,0.00254343,121420.0,121410.0,1.78793833]
[1759859097353,0.00254343,121420.0,121410.0,2.44969833]
[1759859098245,0.00254343,121420.0,121410.0,2.02161833]
[1759859098461,0.00254343,121420.0,121410.0,2.44969833]
[1759859098635,0.00254343,121420.0,121410.0,1.78793833]
[1759859098869,0.00254343,121420.0,121410.0,2.44969833]
[1759859100612,0.00254343,121420.0,121410.0,2.52969513]
[1759859101396,0.00254343,121420.0,121410.0,2.65853221]
[1759859102822,0.00254343,121420.0,121410.0,2.57853541]
[1759859103033,0.0004,121430.0,121420.0,0.2198694]
[1759859103239,0.00052455,121430.0,121420.0,0.70668076]
[1759859103417,0.00052455,121430.0,121420.0,0.78005076]
[1759859104259,0.00052455,121430.0,121420.0,0.78205076]
[1759859104493,0.00152455,121430.0,121420.0,0.86504756]
[1759859107550,0.00152455,121430.0,121420.0,0.88976478]
[1759859107748,0.00152455,121430.0,121420.0,1.25585548]
[1759859108280,0.00152455,121430.0,121420.0,1.35859662]
[1759859108684,0.00152455,121430.0,121420.0,1.12491662]
[1759859108831,0.00203892,121430.0,121420.0,1.12491662]
[1759859109030,0.00203892,121430.0,121420.0,1.78659662]
[1759859112281,1e-08,121430.0,121420.0,1.78659662]
[1759859112696,1e-08,121430.0,121420.0,1.68385548]
[1759859112901,0.0004,121450.0,121440.0,0.16469038]
[1759859113142,0.0004,121450.0,121440.0,0.58826607]
[1759859113348,0.0004,121450.0,121440.0,0.75773607]
[1759859113719,0.00142854,121450.0,121440.0,1.22245087]
[1759859114146,0.00242854,121450.0,121440.0,1.22645087]
[1759859116139,0.00242854,121450.0,121440.0,1.22945087]
[1759859117403,0.00242854,121450.0,121440.0,1.28460277]
[1759859119178,1e-08,121450.0,121440.0,1.28460277]
[1759859119389,1e-08,121450.0,121440.0,1.21068735]
[1759859119816,1e-08,121450.0,121440.0,1.31416894]
[1759859120691,1e-08,121450.0,121440.0,1.21068735]
[1759859121308,1e-08,121450.0,121440.0,1.63864735]
[1759859121724,5.038e-05,121450.0,121440.0,1.63864735]
[1759859123072,4.51e-06,121450.0,121440.0,1.63864735]
[1759859123900,0.06048015,121510.0,121500.0,0.16460905]
[1759859124107,0.06053054,121510.0,121500.0,0.33407905]
[1759859124319,0.00313421,121510.0,121500.0,0.33407905]
[1759859124821,0.00313421,121510.0,121500.0,0.34651027]
[1759859125241,0.00613421,121510.0,121500.0,0.34751027]
[1759859125442,0.06645668,121510.0,121500.0,0.34751027]
[1759859125654,0.00313421,121510.0,121500.0,0.33407905]
[1759859125851,0.00313421,121510.0,121500.0,0.56763905]
[1759859126062,0.00513421,121510.0,121500.0,0.56763905]
[1759859126932,0.00513421,121510.0,121500.0,0.59806639]
[1759859127129,0.00513421,121510.0,121500.0,0.56763905]
[1759859128072,0.00513421,121510.0,121500.0,0.68026871]
[1759859128286,0.00313421,121510.0,121500.0,0.68026871]
[1759859128665,0.00513421,121510.0,121500.0,0.69224194]
[1759859128923,0.00513421,121510.0,121500.0,0.69220194]
[1759859129082,0.00313421,121510.0,121500.0,0.69220194]
[1759859129296,0.00413421,121510.0,121500.0,0.69220194]
[1759859130102,0.00413421,121510.0,121500.0,0.44670871]
[1759859130303,0.00413421,121510.0,121500.0,0.56759905]
[1759859131142,0.00413421,121510.0,121500.0,0.58012986]
[1759859131508,0.00413421,121510.0,121500.0,0.38506008]
[1759859131710,0.00413421,121510.0,121500.0,0.56759905]
[1759859132914,0.00413421,121510.0,121500.0,0.33407905]
[1759859133112,0.00413421,121510.0,121500.0,1.04715785]
[1759859133316,0.00413421,121510.0,121500.0,1.13271785]
[1759859133541,0.00413421,121510.0,121500.0,1.15742204]
[1759859133766,0.00413421,121510.0,121500.0,1.23741884]
[1759859133911,0.00413421,121510.0,121500.0,1.19315744]
[1759859134110,0.00413421,121510.0,121500.0,1.22330934]
[1759859134341,1e-08,121510.0,121500.0,1.28232455]
[1759859134536,0.0004,121520.0,121510.0,0.5045955]
[1759859134735,0.0004,121520.0,121510.0,0.82793181]
[1759859134968,0.0004,121520.0,121510.0,0.86261181]
[1759859135169,0.0004,121520.0,121510.0,0.86590534]
[1759859135811,0.0004,121520.0,121510.0,1.09938534]
[1759859135990,0.0004,121520.0,121510.0,1.18494534]
[1759859136406,0.0004,121520.0,121510.0,1.09938534]
[1759859136571,0.0004,121520.0,121510.0,1.10138534]
[1759859137027,0.0004,121520.0,121510.0,1.18694534]
[1759859137593,0.0004,121520.0,121510.0,1.10134534]
[1759859137811,0.0004,121520.0,121510.0,1.18690534]
[1759859138011,0.0004,121520.0,121510.0,1.10134534]
[1759859138215,0.18646493,121560.0,121550.0,0.16454134]
[1759859138414,0.18646493,121560.0,121550.0,0.54618134]
[1759859138415,0.18651529,121560.0,121550.0,0.54618134]
[1759859138620,0.01376061,121560.0,121550.0,0.33260134]
[1759859138789,0.01376061,121560.0,121550.0,0.56604134]
[1759859139606,0.01376061,121560.0,121550.0,0.33260134]
[1759859139808,0.17828841,121560.0,121550.0,0.33260134]
[1759859140009,0.01376061,121560.0,121550.0,0.56604134]
[1759859140414,0.01676061,121560.0,121550.0,0.56604134]
[1759859140825,0.18385657,121560.0,121550.0,0.56604134]
[1759859142093,0.01932877,121560.0,121550.0,0.56604134]
[1759859142328,0.18385657,121560.0,121550.0,0.56604134]
[1759859143015,0.01932877,121560.0,121550.0,0.33260134]
[1759859143252,0.18385657,121560.0,121550.0,0.56600134]
[1759859143463,0.19150432,121560.0,121550.0,0.33260134]
[1759859143679,0.19150432,121560.0,121550.0,0.56600134]
[1759859144158,0.19150432,121560.0,121550.0,0.40146]
[1759859144369,0.80167029,121560.0,121550.0,0.16806]
[1759859144585,0.80167045,121560.0,121550.0,0.29396]
[1759859144999,0.19150448,121560.0,121550.0,0.45850134]
[1759859145212,0.80167045,121560.0,121550.0,0.45850134]
[1759859145637,0.80167045,121560.0,121550.0,0.51108134]
[1759859146353,0.80167045,121560.0,121550.0,0.55967134]
[1759859146618,0.19150448,121560.0,121550.0,0.55967134]
[1759859147184,0.01326841,121560.0,121550.0,0.71521602]
[1759859147385,0.00561852,121560.0,121550.0,0.6427934]
[1759859147602,0.00561852,121560.0,121550.0,0.7283134]
[1759859148635,0.00261852,121560.0,121550.0,0.7283134]
[1759859150179,0.00361852,121560.0,121550.0,0.7283134]
[1759859150395,0.00361852,121560.0,121550.0,0.83773719]
[1759859151075,0.00361852,121560.0,121550.0,1.17773719]
[1759859151281,0.00361852,121560.0,121550.0,1.22187768]
[1759859151488,0.00361852,121560.0,121550.0,1.2254962]
[1759859151723,0.00261852,121560.0,121550.0,1.2254962]
[1759859153789,0.00261852,121560.0,121550.0,1.1454994]
[1759859154330,0.00261852,121560.0,121550.0,0.79715241]
[1759859154537,0.00261852,121560.0,121550.0,1.11241389]
[1759859154957,0.00261852,121560.0,121550.0,0.79353389]
[1759859155174,0.00261852,121560.0,121550.0,0.75771786]
[1759859155365,0.16714632,121560.0,121550.0,0.39509]
[1759859155596,0.17479721,121560.0,121550.0,0.39509]
[1759859156039,0.17479721,121560.0,121550.0,0.39505]
[1759859156259,0.78496318,121560.0,121550.0,0.11314]
[1759859156474,0.17579721,121560.0,121550.0,0.32706]
[1759859156689,0.78596318,121560.0,121550.0,0.32706]
[1759859156835,0.17479721,121560.0,121550.0,0.34646]
[1759859157061,0.78496318,121560.0,121550.0,0.34646]
[1759859157265,0.78696318,121560.0,121550.0,0.34646]
[1759859157807,0.77931229,121560.0,121550.0,0.11314]
[1759859158162,0.78697233,121560.0,121550.0,0.11314]
[1759859158376,0.78697414,121560.0,121550.0,0.11314]
[1759859158850,0.77931229,121560.0,121550.0,0.11314]
[1759859159691,0.00461852,121560.0,121550.0,0.32950134]
[1759859159902,0.00461852,121560.0,121550.0,0.16496]
[1759859160117,0.77931229,121560.0,121550.0,0.34646]
[1759859161103,0.78697765,121560.0,121550.0,0.34646]
[1759859161529,0.78697765,121560.0,121550.0,0.11314]
[1759859161710,0.16914632,121560.0,121550.0,0.34646]
[1759859161908,0.00461852,121560.0,121550.0,0.56282134]
[1759859163113,0.16914632,121560.0,121550.0,0.56282134]
[1759859163312,0.00461852,121560.0,121550.0,0.56282134]
[1759859163585,0.16914632,121560.0,121550.0,0.16496]
[1759859163760,0.81348595,121560.0,121550.0,0.34646]
[1759859164085,0.64895815,121560.0,121550.0,0.51100134]
[1759859164292,0.20331998,121560.0,121550.0,0.56282134]
[1759859164857,0.16914632,121560.0,121550.0,0.56282134]
[1759859166880,0.16914632,121560.0,121550.0,0.39828]
[1759859167073,0.16914632,121560.0,121550.0,0.51100134]
[1759859167480,0.16914632,121560.0,121550.0,0.34646]
[1759859167685,0.77931229,121560.0,121550.0,0.04071]
[1759859167893,0.16914632,121560.0,121550.0,0.45827134]
[1759859168117,0.77931229,121560.0,121550.0,0.29373]
[1759859168326,0.16914632,121560.0,121550.0,0.51211134]
[1759859168527,0.00461852,121560.0,121550.0,0.56393134]
[1759859168740,0.00461852,121560.0,121550.0,0.5933758]
[1759859169623,0.00461852,121560.0,121550.0,0.60493104]
[1759859169834,0.00461852,121560.0,121550.0,0.73219359]
[1759859170056,0.00461852,121560.0,121550.0,0.69119389]
[1759859170687,0.00261852,121560.0,121550.0,0.69119389]
[1759859171122,0.00261852,121560.0,121550.0,0.69219389]
[1759859171331,0.00261852,121560.0,121550.0,0.69119389]
[1759859171536,0.00261852,121560.0,121550.0,0.69219389]
[1759859171967,0.00261852,121560.0,121550.0,0.7280502]
[1759859172228,0.00361852,121560.0,121550.0,0.6480534]
[1759859172591,0.00261852,121560.0,121550.0,0.6480534]
[1759859172818,0.00361852,121560.0,121550.0,1.04697164]
[1759859173827,0.00361852,121560.0,121550.0,0.81365164]
[1759859174045,0.00361852,121560.0,121550.0,1.13249164]
[1759859174481,0.00361852,121560.0,121550.0,1.21248844]
[1759859174950,0.00361852,121560.0,121550.0,1.21610696]
[1759859178033,0.00361852,121560.0,121550.0,1.15718872]
[1759859178386,0.00361852,121560.0,121550.0,1.21620986]
[1759859178681,0.00261852,121560.0,121550.0,1.21620986]
[1759859179113,0.00261852,121560.0,121550.0,1.15818872]
[1759859179317,0.00261852,121560.0,121550.0,1.21620383]
[1759859179704,0.00261852,121560.0,121550.0,1.21920383]